[Event "Live Chess"]
[Site "Chess.com"]
[Date "2023.05.21"]
[Round "-"]
[White "wadsy27"]
[Black "TheSmoulderingMaster"]
[Result "1-0"]
[WhiteElo "2569"]
[BlackElo "1698"]
[TimeControl "300"]
[EndTime "2:20:05 PDT"]
[Termination "wadsy27 won by resignation"]

1. e4 {[%clk 0:04:57.6]} 1... c5 {[%clk 0:04:58.1]} 2. Nf3 {[%clk 0:04:56.3]}
2... d6 {[%clk 0:04:57.3]} 3. d4 {[%clk 0:04:52]} 3... cxd4 {[%clk 0:04:55.4]}
4. Nxd4 {[%clk 0:04:51.9]} 4... Nf6 {[%clk 0:04:54.4]} 5. Nc3 {[%clk 0:04:50.9]}
5... g6 {[%clk 0:04:53.9]} 6. Be3 {[%clk 0:04:47.5]} 6... Bg7 {[%clk 0:04:53.3]}
7. f3 {[%clk 0:04:46.4]} 7... O-O {[%clk 0:04:52.4]} 8. Qd2 {[%clk 0:04:45.8]}
8... Nc6 {[%clk 0:04:50.9]} 9. O-O-O {[%clk 0:04:43.7]} 9... d5 {[%clk 0:04:49]}
10. Nxc6 {[%clk 0:04:32.8]} 10... bxc6 {[%clk 0:04:47.7]} 11. Bc4 {[%clk
0:04:20.8]} 11... Qa5 {[%clk 0:04:44.4]} 12. Bb3 {[%clk 0:04:18.9]} 12... Ba6
{[%clk 0:04:35.8]} 13. Kb1 {[%clk 0:04:13.3]} 13... Rab8 {[%clk 0:04:29.6]} 14.
Nxd5 {[%clk 0:04:09.2]} 14... Qxd2 {[%clk 0:04:24.3]} 15. Nxe7+ {[%clk
0:04:06.4]} 15... Kh8 {[%clk 0:04:23.7]} 16. Rxd2 {[%clk 0:04:05.4]} 16... Rfe8
{[%clk 0:04:17.8]} 17. Nxc6 {[%clk 0:04:03.7]} 1-0

[Event "Live Chess"]
[Site "Chess.com"]
[Date "2023.05.21"]
[Round "-"]
[White "ProfPoisson"]
[Black "LiamClery2020"]
[Result "0-1"]
[WhiteElo "1228"]
[BlackElo "2015"]
[TimeControl "300"]
[EndTime "2:20:12 PDT"]
[Termination "LiamClery2020 won by resignation"]

1. e4 {[%clk 0:04:55.9]} 1... Nf6 {[%clk 0:04:59.9]} 2. e5 {[%clk 0:04:54]} 2...
Nd5 {[%clk 0:04:58.6]} 3. Nf3 {[%clk 0:04:51.9]} 3... d6 {[%clk 0:04:57.2]} 4.
Bc4 {[%clk 0:04:46.8]} 4... Nb6 {[%clk 0:04:54.1]} 5. Bxf7+ {[%clk 0:04:27]}
5... Kxf7 {[%clk 0:04:54]} 6. Ng5+ {[%clk 0:04:25]} 6... Kg8 {[%clk 0:04:45.2]}
7. exd6 {[%clk 0:04:11.7]} 7... exd6 {[%clk 0:04:43.2]} 8. d3 {[%clk 0:04:10]}
8... Nc6 {[%clk 0:04:41]} 9. O-O {[%clk 0:04:08.1]} 9... Bf5 {[%clk 0:04:37.8]}
10. Qf3 {[%clk 0:04:03.3]} 10... Bg6 {[%clk 0:04:36.3]} 11. Nc3 {[%clk 0:03:53]}
11... Be7 {[%clk 0:04:34.5]} 12. h4 {[%clk 0:03:49.5]} 12... Qd7 {[%clk
0:04:31.8]} 13. Nce4 {[%clk 0:03:39.2]} 13... Rf8 {[%clk 0:04:29.1]} 14. Qg3
{[%clk 0:03:24.4]} 14... Nd4 {[%clk 0:04:24.8]} 15. Re1 {[%clk 0:02:52.1]} 15...
Nxc2 {[%clk 0:04:19.1]} 16. Re3 {[%clk 0:02:24.2]} 16... Nxa1 {[%clk 0:04:11.8]}
17. b3 {[%clk 0:02:16.3]} 17... Nc2 {[%clk 0:04:09.9]} 18. Rf3 {[%clk
0:02:12.8]} 18... Rxf3 {[%clk 0:04:08.2]} 19. Nxf3 {[%clk 0:02:10]} 19... d5
{[%clk 0:04:03.3]} 20. Neg5 {[%clk 0:02:07.2]} 20... Bd6 {[%clk 0:03:59.8]} 21.
Bf4 {[%clk 0:02:01.5]} 21... h6 {[%clk 0:03:52.1]} 22. Ne5 {[%clk 0:01:55.4]}
22... Bxe5 {[%clk 0:03:48.7]} 23. Bxe5 {[%clk 0:01:50]} 23... hxg5 {[%clk
0:03:47.6]} 24. Qxg5 {[%clk 0:01:47.5]} 24... Qe8 {[%clk 0:03:36]} 25. Bxc7
{[%clk 0:01:43.5]} 25... Rh5 {[%clk 0:03:22.1]} 26. Qg4 {[%clk 0:01:31.1]} 26...
Qd7 {[%clk 0:03:13.1]} 27. Qxg6 {[%clk 0:01:25.7]} 27... Rh6 {[%clk 0:03:03]}
28. Qg5 {[%clk 0:01:08.5]} 28... Qxc7 {[%clk 0:03:00.6]} 29. Qd2 {[%clk
0:01:04.8]} 29... Rg6 {[%clk 0:02:56.8]} 30. Qxc2 {[%clk 0:01:02.4]} 30... Qxc2
{[%clk 0:02:55.7]} 0-1

[Event "Live Chess"]
[Site "Chess.com"]
[Date "2023.05.21"]
[Round "-"]
[White "HadesLearmonth"]
[Black "Bot_Boy"]
[Result "1-0"]
[WhiteElo "1203"]
[BlackElo "334"]
[TimeControl "300"]
[EndTime "2:20:42 PDT"]
[Termination "HadesLearmonth won on time"]

1. e4 {[%clk 0:04:58]} 1... d6 {[%clk 0:04:56.2]} 2. d4 {[%clk 0:04:54]} 2... e5
{[%clk 0:04:53.9]} 3. d5 {[%clk 0:04:50.4]} 3... Nf6 {[%clk 0:04:48.4]} 4. Bg5
{[%clk 0:04:42.8]} 4... h6 {[%clk 0:04:42.5]} 5. Bxf6 {[%clk 0:04:40.1]} 5...
Qxf6 {[%clk 0:04:40.9]} 6. Nf3 {[%clk 0:04:37.8]} 6... g5 {[%clk 0:04:18.5]} 7.
Nc3 {[%clk 0:04:33]} 7... g4 {[%clk 0:04:11.6]} 8. Nd2 {[%clk 0:04:28.5]} 8...
Bg7 {[%clk 0:04:00.5]} 9. Nb3 {[%clk 0:04:27.1]} 9... Bd7 {[%clk 0:03:55.1]} 10.
Nb5 {[%clk 0:04:25.6]} 10... c6 {[%clk 0:03:45.1]} 11. Nc7+ {[%clk 0:04:22.4]}
11... Kf8 {[%clk 0:03:36.6]} 12. Nxa8 {[%clk 0:04:22.3]} 12... h5 {[%clk
0:03:09.5]} 13. dxc6 {[%clk 0:04:20.3]} 13... Bxc6 {[%clk 0:02:51]} 14. Nc7
{[%clk 0:04:18.7]} 14... Bxe4 {[%clk 0:02:44]} 15. Bc4 {[%clk 0:04:09]} 15...
Bxg2 {[%clk 0:02:30.9]} 16. Rg1 {[%clk 0:03:57]} 16... Bf3 {[%clk 0:02:20.3]}
17. Qd3 {[%clk 0:03:43.9]} 17... Rh6 {[%clk 0:01:25.2]} 18. Nd5 {[%clk
0:03:31.8]} 18... e4 {[%clk 0:01:14.6]} 19. Qe3 {[%clk 0:03:25.4]} 19... Qxb2
{[%clk 0:01:07.4]} 20. Qxa7 {[%clk 0:03:16]} 20... Re6 {[%clk 0:00:36.7]} 21.
Qxb8+ {[%clk 0:03:13.2]} 21... Re8 {[%clk 0:00:19.8]} 22. Qxd6+ {[%clk
0:03:07.4]} 22... Kg8 {[%clk 0:00:14.5]} 23. Kd2 {[%clk 0:03:01.5]} 23... e3+
{[%clk 0:00:11.5]} 24. fxe3 {[%clk 0:02:59.7]} 24... Bc3+ {[%clk 0:00:07.3]} 25.
Nxc3 {[%clk 0:02:57.3]} 25... Rxe3 {[%clk 0:00:03.6]} 26. Kxe3 {[%clk 0:02:55]}
26... Qxc3+ {[%clk 0:00:02]} 27. Kf4 {[%clk 0:02:53.2]} 1-0

[Event "Live Chess"]
[Site "Chess.com"]
[Date "2023.05.21"]
[Round "-"]
[White "OceanFloater"]
[Black "Leonid_Starozhilov"]
[Result "0-1"]
[WhiteElo "1021"]
[BlackElo "2632"]
[TimeControl "300"]
[EndTime "2:20:44 PDT"]
[Termination "Leonid_Starozhilov won by checkmate"]

1. e4 {[%clk 0:04:56.6]} 1... c5 {[%clk 0:04:59.9]} 2. Nf3 {[%clk 0:04:52]} 2...
Nc6 {[%clk 0:04:59.3]} 3. Bc4 {[%clk 0:04:49.7]} 3... e6 {[%clk 0:04:57.7]} 4.
a3 {[%clk 0:04:49.2]} 4... d5 {[%clk 0:04:56.2]} 5. exd5 {[%clk 0:04:47.8]} 5...
exd5 {[%clk 0:04:55.9]} 6. Bb5 {[%clk 0:04:47.1]} 6... Bd6 {[%clk 0:04:55.2]} 7.
b4 {[%clk 0:04:45.3]} 7... Ne7 {[%clk 0:04:52.2]} 8. bxc5 {[%clk 0:04:43.6]}
8... Bxc5 {[%clk 0:04:52.1]} 9. d4 {[%clk 0:04:41.5]} 9... Qa5+ {[%clk
0:04:49.1]} 10. Nc3 {[%clk 0:04:34.8]} 10... Bxd4 {[%clk 0:04:30.5]} 11. Nxd4
{[%clk 0:04:32.5]} 11... Qxc3+ {[%clk 0:04:29]} 12. Bd2 {[%clk 0:04:27.6]} 12...
Qxd4 {[%clk 0:04:28.1]} 13. Bxc6+ {[%clk 0:04:26.4]} 13... Nxc6 {[%clk
0:04:22.9]} 14. O-O {[%clk 0:04:23.6]} 14... O-O {[%clk 0:04:21.7]} 15. Be3
{[%clk 0:04:20.1]} 15... Qxd1 {[%clk 0:04:20.1]} 16. Raxd1 {[%clk 0:04:17.8]}
16... d4 {[%clk 0:04:18.8]} 17. Bxd4 {[%clk 0:04:10.8]} 17... Nxd4 {[%clk
0:04:18.7]} 18. Rxd4 {[%clk 0:04:10]} 18... Be6 {[%clk 0:04:18.6]} 19. c3 {[%clk
0:04:07.9]} 19... Rfc8 {[%clk 0:04:16.9]} 20. Rc1 {[%clk 0:04:05.5]} 20... Rc7
{[%clk 0:04:15.6]} 21. c4 {[%clk 0:04:04.3]} 21... Rac8 {[%clk 0:04:14.1]} 22.
c5 {[%clk 0:04:02.8]} 22... Kf8 {[%clk 0:04:12.3]} 23. f4 {[%clk 0:03:56.9]}
23... Rxc5 {[%clk 0:04:11.5]} 24. Rxc5 {[%clk 0:03:54.9]} 24... Rxc5 {[%clk
0:04:11.4]} 25. Rd8+ {[%clk 0:03:53.8]} 25... Ke7 {[%clk 0:04:10.3]} 26. Rd1
{[%clk 0:03:52.2]} 26... b5 {[%clk 0:04:09.2]} 27. h3 {[%clk 0:03:49.5]} 27...
a5 {[%clk 0:04:08]} 28. g4 {[%clk 0:03:48.3]} 28... g6 {[%clk 0:04:06.9]} 29.
Kg2 {[%clk 0:03:45.9]} 29... b4 {[%clk 0:04:06]} 30. a4 {[%clk 0:03:44.4]} 30...
b3 {[%clk 0:04:04.4]} 31. Kg3 {[%clk 0:03:42.6]} 31... b2 {[%clk 0:04:03.7]} 32.
f5 {[%clk 0:03:38]} 32... Rc1 {[%clk 0:04:01.8]} 33. Rxc1 {[%clk 0:03:36.4]}
33... bxc1=Q {[%clk 0:04:00.6]} 34. fxe6 {[%clk 0:03:36.1]} 34... fxe6 {[%clk
0:03:59.9]} 35. Kh4 {[%clk 0:03:34.8]} 35... h6 {[%clk 0:03:59.1]} 36. g5 {[%clk
0:03:30.7]} 36... Qf4# {[%clk 0:03:57.8]} 0-1

[Event "Live Chess"]
[Site "Chess.com"]
[Date "2023.05.21"]
[Round "-"]
[White "LiamBellwood"]
[Black "NatashaRegan"]
[Result "0-1"]
[WhiteElo "1965"]
[BlackElo "1765"]
[TimeControl "300"]
[EndTime "2:20:56 PDT"]
[Termination "NatashaRegan won by resignation"]

1. d4 {[%clk 0:04:59]} 1... Nf6 {[%clk 0:04:57.1]} 2. Nc3 {[%clk 0:04:58.6]}
2... d5 {[%clk 0:04:54.4]} 3. Bf4 {[%clk 0:04:57.9]} 3... g6 {[%clk 0:04:47.9]}
4. e3 {[%clk 0:04:56]} 4... Bg7 {[%clk 0:04:45.9]} 5. h4 {[%clk 0:04:55.7]} 5...
h5 {[%clk 0:04:40.3]} 6. Nf3 {[%clk 0:04:55.2]} 6... Bg4 {[%clk 0:04:36.5]} 7.
Qd2 {[%clk 0:04:54.5]} 7... c6 {[%clk 0:04:28.4]} 8. Ne5 {[%clk 0:04:50.9]} 8...
Bf5 {[%clk 0:04:22.1]} 9. Bd3 {[%clk 0:04:48.3]} 9... Bxd3 {[%clk 0:04:13.9]}
10. Qxd3 {[%clk 0:04:48.2]} 10... Nbd7 {[%clk 0:04:09.5]} 11. f3 {[%clk
0:04:46.4]} 11... Nxe5 {[%clk 0:04:05.8]} 12. Bxe5 {[%clk 0:04:46.3]} 12... O-O
{[%clk 0:04:02.4]} 13. O-O-O {[%clk 0:04:43.5]} 13... a5 {[%clk 0:03:58.8]} 14.
Rdg1 {[%clk 0:04:41.9]} 14... a4 {[%clk 0:03:54.2]} 15. g4 {[%clk 0:04:41]}
15... b5 {[%clk 0:03:48.3]} 16. Bxf6 {[%clk 0:04:40.3]} 16... exf6 {[%clk
0:03:37.1]} 17. gxh5 {[%clk 0:04:39.2]} 17... gxh5 {[%clk 0:03:23.4]} 18. Qf5
{[%clk 0:04:27.9]} 18... Qd6 {[%clk 0:03:11.6]} 19. Qxh5 {[%clk 0:04:16.4]}
19... Rfe8 {[%clk 0:03:00.4]} 20. Qg4 {[%clk 0:03:52.7]} 20... Qf8 {[%clk
0:02:50.4]} 21. h5 {[%clk 0:03:51.5]} 21... Kh7 {[%clk 0:02:38.8]} 22. Qf5+
{[%clk 0:03:27.1]} 22... Kh6 {[%clk 0:02:30.3]} 23. Qf4+ {[%clk 0:03:26.3]}
23... Kh7 {[%clk 0:02:29.1]} 24. h6 {[%clk 0:03:20.1]} 24... Bxh6 {[%clk
0:02:26.4]} 25. Qxf6 {[%clk 0:03:14.2]} 25... Re6 {[%clk 0:02:21.5]} 26. Rxh6+
{[%clk 0:03:06.9]} 26... Qxh6 {[%clk 0:02:18.9]} 27. Qxf7+ {[%clk 0:03:05.8]}
27... Kh8 {[%clk 0:02:16.3]} 28. f4 {[%clk 0:02:50.1]} 28... Rf8 {[%clk
0:02:11.3]} 29. Qd7 {[%clk 0:02:13.9]} 29... Rxe3 {[%clk 0:02:04.6]} 30. Qg4
{[%clk 0:01:58.3]} 30... Re7 {[%clk 0:01:53.9]} 31. Kb1 {[%clk 0:01:21.6]} 31...
Rg7 {[%clk 0:01:47.9]} 0-1

[Event "Live Chess"]
[Site "Chess.com"]
[Date "2023.05.21"]
[Round "-"]
[White "domrobson"]
[Black "OleksiyJr1"]
[Result "1-0"]
[WhiteElo "1712"]
[BlackElo "973"]
[TimeControl "300"]
[EndTime "2:21:08 PDT"]
[Termination "domrobson won by checkmate"]

1. d4 {[%clk 0:04:59.1]} 1... Nf6 {[%clk 0:04:56.9]} 2. c4 {[%clk 0:04:58.7]}
2... c6 {[%clk 0:04:55.3]} 3. Nc3 {[%clk 0:04:57.9]} 3... d5 {[%clk 0:04:52.3]}
4. Nf3 {[%clk 0:04:57.1]} 4... Bg4 {[%clk 0:04:49.7]} 5. Ne5 {[%clk 0:04:55.8]}
5... Nbd7 {[%clk 0:04:48]} 6. Nxg4 {[%clk 0:04:54.1]} 6... Nxg4 {[%clk
0:04:46.6]} 7. cxd5 {[%clk 0:04:53.3]} 7... cxd5 {[%clk 0:04:40.7]} 8. e4 {[%clk
0:04:52.5]} 8... Ngf6 {[%clk 0:04:37.8]} 9. e5 {[%clk 0:04:51.6]} 9... Ne4
{[%clk 0:04:35.4]} 10. Nxd5 {[%clk 0:04:49.2]} 10... e6 {[%clk 0:04:33.8]} 11.
Nc3 {[%clk 0:04:47.8]} 11... Nxc3 {[%clk 0:04:31.2]} 12. bxc3 {[%clk 0:04:46.3]}
12... Nb6 {[%clk 0:04:30.6]} 13. Bb5+ {[%clk 0:04:43]} 13... Nd7 {[%clk
0:04:26.1]} 14. Qa4 {[%clk 0:04:40]} 14... a6 {[%clk 0:04:22.9]} 15. Bxd7+
{[%clk 0:04:38]} 15... Qxd7 {[%clk 0:04:22.8]} 16. Qxd7+ {[%clk 0:04:36]} 16...
Kxd7 {[%clk 0:04:22.7]} 17. O-O {[%clk 0:04:35.1]} 17... Rc8 {[%clk 0:04:22.1]}
18. Bd2 {[%clk 0:04:34]} 18... Be7 {[%clk 0:04:16.7]} 19. Rab1 {[%clk
0:04:32.5]} 19... Rc7 {[%clk 0:04:15.2]} 20. Rb6 {[%clk 0:04:29.4]} 20... Rhc8
{[%clk 0:04:09.8]} 21. Rfb1 {[%clk 0:04:28.8]} 21... Rb8 {[%clk 0:04:05.6]} 22.
Rxa6 {[%clk 0:04:27.1]} 22... f6 {[%clk 0:04:00]} 23. exf6 {[%clk 0:04:23.7]}
23... Bxf6 {[%clk 0:03:59.9]} 24. Ra4 {[%clk 0:04:17.7]} 24... e5 {[%clk
0:03:58.1]} 25. dxe5 {[%clk 0:04:13.9]} 25... Bxe5 {[%clk 0:03:56.8]} 26. Re4
{[%clk 0:04:13.1]} 26... Bxc3 {[%clk 0:03:50.2]} 27. Bf4 {[%clk 0:04:11.8]}
27... Bd2 {[%clk 0:03:39.8]} 28. Bxc7 {[%clk 0:04:09.2]} 28... Rc8 {[%clk
0:03:39.1]} 29. Rd4+ {[%clk 0:04:08.1]} 29... Ke8 {[%clk 0:03:36]} 30. Rxd2
{[%clk 0:04:06.8]} 30... Rxc7 {[%clk 0:03:35.9]} 31. Re1+ {[%clk 0:04:05.4]}
31... Kf8 {[%clk 0:03:34.7]} 32. Red1 {[%clk 0:04:02]} 32... Ke7 {[%clk
0:03:33.5]} 33. Kf1 {[%clk 0:04:00.3]} 33... Ke6 {[%clk 0:03:32.5]} 34. Rd6+
{[%clk 0:03:58.2]} 34... Ke5 {[%clk 0:03:31.6]} 35. R1d5+ {[%clk 0:03:55.9]}
35... Ke4 {[%clk 0:03:29.7]} 36. f3+ {[%clk 0:03:54.6]} 36... Ke3 {[%clk
0:03:28.1]} 37. Rd3+ {[%clk 0:03:53.1]} 37... Kf4 {[%clk 0:03:26.6]} 38. R6d4+
{[%clk 0:03:50.8]} 38... Ke5 {[%clk 0:03:25.7]} 39. Re4+ {[%clk 0:03:49.3]}
39... Kf5 {[%clk 0:03:24.8]} 40. Rd5+ {[%clk 0:03:48.5]} 40... Kf6 {[%clk
0:03:23.3]} 41. g4 {[%clk 0:03:44.4]} 41... Rc1+ {[%clk 0:03:21.6]} 42. Kg2
{[%clk 0:03:42.4]} 42... Rc2+ {[%clk 0:03:21.5]} 43. Kg3 {[%clk 0:03:41.6]}
43... Rxa2 {[%clk 0:03:20.7]} 44. Rf5+ {[%clk 0:03:40.6]} 44... Kg6 {[%clk
0:03:19.2]} 45. Re6# {[%clk 0:03:38.5]} 1-0

[Event "Live Chess"]
[Site "Chess.com"]
[Date "2023.05.21"]
[Round "-"]
[White "Denz14"]
[Black "elephantgerrald"]
[Result "1-0"]
[WhiteElo "1046"]
[BlackElo "688"]
[TimeControl "300"]
[EndTime "2:21:11 PDT"]
[Termination "Denz14 won by checkmate"]

1. d4 {[%clk 0:04:57]} 1... d5 {[%clk 0:04:52.5]} 2. Bf4 {[%clk 0:04:55.1]} 2...
Nc6 {[%clk 0:04:50.8]} 3. e3 {[%clk 0:04:53.1]} 3... Bf5 {[%clk 0:04:48.9]} 4.
Bd3 {[%clk 0:04:49.2]} 4... Bxd3 {[%clk 0:04:46.6]} 5. Qxd3 {[%clk 0:04:47]}
5... Nb4 {[%clk 0:04:45.1]} 6. Qb5+ {[%clk 0:04:39.8]} 6... Nc6 {[%clk
0:04:43.8]} 7. Nc3 {[%clk 0:04:36.8]} 7... a6 {[%clk 0:04:37]} 8. Qe2 {[%clk
0:04:33.6]} 8... Qd7 {[%clk 0:04:34]} 9. Nf3 {[%clk 0:04:27.4]} 9... O-O-O
{[%clk 0:04:32.3]} 10. a3 {[%clk 0:04:23.1]} 10... Nf6 {[%clk 0:04:31]} 11. b4
{[%clk 0:04:20.6]} 11... e6 {[%clk 0:04:22.8]} 12. O-O {[%clk 0:04:17.9]} 12...
b5 {[%clk 0:04:20.2]} 13. Rfb1 {[%clk 0:04:15]} 13... h5 {[%clk 0:04:18.7]} 14.
h3 {[%clk 0:04:05.3]} 14... Ne4 {[%clk 0:04:16]} 15. Nxe4 {[%clk 0:03:57.5]}
15... dxe4 {[%clk 0:04:11.5]} 16. Ne5 {[%clk 0:03:56.1]} 16... Nxe5 {[%clk
0:04:09.8]} 17. Bxe5 {[%clk 0:03:54.7]} 17... f6 {[%clk 0:04:07.5]} 18. Bh2
{[%clk 0:03:49.1]} 18... g5 {[%clk 0:03:55.6]} 19. c4 {[%clk 0:03:45.6]} 19...
bxc4 {[%clk 0:03:54.1]} 20. Qxc4 {[%clk 0:03:42]} 20... Qb5 {[%clk 0:03:43.9]}
21. Qxb5 {[%clk 0:03:31.3]} 21... axb5 {[%clk 0:03:39.7]} 22. a4 {[%clk
0:03:30.2]} 22... bxa4 {[%clk 0:03:38.1]} 23. Rxa4 {[%clk 0:03:28.6]} 23... f5
{[%clk 0:03:36.1]} 24. Be5 {[%clk 0:03:23.3]} 24... Rg8 {[%clk 0:03:31.2]} 25.
Rc1 {[%clk 0:03:16.2]} 25... c6 {[%clk 0:03:27.6]} 26. Rxc6+ {[%clk 0:03:13.2]}
26... Kb7 {[%clk 0:03:17.8]} 27. Rc7+ {[%clk 0:03:00.4]} 27... Kb6 {[%clk
0:03:11.7]} 28. Raa7 {[%clk 0:02:38.7]} 28... Bxb4 {[%clk 0:02:52.9]} 29. Rcb7+
{[%clk 0:02:35]} 29... Kc6 {[%clk 0:02:41]} 30. Rxb4 {[%clk 0:02:33.3]} 30... g4
{[%clk 0:02:36.2]} 31. Ra6+ {[%clk 0:02:17.7]} 31... Kd5 {[%clk 0:02:33.1]} 32.
hxg4 {[%clk 0:02:04.4]} 32... fxg4 {[%clk 0:02:22.5]} 33. Rb5+ {[%clk
0:02:01.2]} 33... Kc4 {[%clk 0:02:08]} 34. Rc5+ {[%clk 0:01:56.8]} 34... Kb4
{[%clk 0:02:05.7]} 35. Rb6+ {[%clk 0:01:50.6]} 35... Ka4 {[%clk 0:01:49.6]} 36.
Rc1 {[%clk 0:01:37.4]} 36... Ka5 {[%clk 0:01:46.9]} 37. Bc7 {[%clk 0:01:25.7]}
37... Rc8 {[%clk 0:01:40.4]} 38. Ra1# {[%clk 0:01:22]} 1-0

[Event "Live Chess"]
[Site "Chess.com"]
[Date "2023.05.21"]
[Round "-"]
[White "Shepherds_Pie"]
[Black "Mugzwang"]
[Result "1-0"]
[WhiteElo "1942"]
[BlackElo "1551"]
[TimeControl "300"]
[EndTime "2:21:26 PDT"]
[Termination "Shepherds_Pie won on time"]

1. c4 {[%clk 0:04:57.2]} 1... e5 {[%clk 0:04:56.1]} 2. Nc3 {[%clk 0:04:56]} 2...
Nf6 {[%clk 0:04:54.7]} 3. Nf3 {[%clk 0:04:54.8]} 3... Nc6 {[%clk 0:04:53.2]} 4.
e3 {[%clk 0:04:53.7]} 4... Bb4 {[%clk 0:04:45.2]} 5. Qc2 {[%clk 0:04:51.4]} 5...
O-O {[%clk 0:04:43.4]} 6. Nd5 {[%clk 0:04:50.1]} 6... Nxd5 {[%clk 0:04:37.3]} 7.
cxd5 {[%clk 0:04:48.1]} 7... Ne7 {[%clk 0:04:33.8]} 8. Nxe5 {[%clk 0:04:46.1]}
8... d6 {[%clk 0:04:22.6]} 9. Nf3 {[%clk 0:04:37.3]} 9... Bf5 {[%clk 0:04:20.7]}
10. Qb3 {[%clk 0:04:34.8]} 10... a5 {[%clk 0:04:15.2]} 11. a3 {[%clk 0:04:32.8]}
11... Bc5 {[%clk 0:04:13.8]} 12. Be2 {[%clk 0:04:30.1]} 12... a4 {[%clk
0:04:03.7]} 13. Qc4 {[%clk 0:04:28]} 13... Qb8 {[%clk 0:03:31.7]} 14. O-O {[%clk
0:04:22.9]} 14... b5 {[%clk 0:03:31.1]} 15. Qxb5 {[%clk 0:04:13]} 15... Qxb5
{[%clk 0:03:28.4]} 16. Bxb5 {[%clk 0:04:11.6]} 16... Nxd5 {[%clk 0:03:27.5]} 17.
Bc6 {[%clk 0:04:10.5]} 17... Bd3 {[%clk 0:03:15.9]} 18. Re1 {[%clk 0:04:03.3]}
18... Nb6 {[%clk 0:03:02.3]} 19. Bxa8 {[%clk 0:04:00.5]} 19... Rxa8 {[%clk
0:03:01.9]} 20. b4 {[%clk 0:03:46.7]} 20... axb3 {[%clk 0:02:54.2]} 21. Bb2
{[%clk 0:03:45.4]} 21... Na4 {[%clk 0:02:42]} 22. Rab1 {[%clk 0:03:30.3]} 22...
Bxb1 {[%clk 0:02:37.4]} 23. Rxb1 {[%clk 0:03:29]} 23... Nxb2 {[%clk 0:02:35.5]}
24. Rxb2 {[%clk 0:03:27.6]} 24... Rxa3 {[%clk 0:02:34.8]} 25. g4 {[%clk
0:03:18.9]} 25... Bb4 {[%clk 0:01:51.3]} 26. Kf1 {[%clk 0:03:11.6]} 26... c5
{[%clk 0:01:38.8]} 27. Ke2 {[%clk 0:03:00.5]} 27... f6 {[%clk 0:01:26.4]} 28.
Ne1 {[%clk 0:02:54.5]} 28... Ra2 {[%clk 0:01:19.4]} 29. Nd3 {[%clk 0:02:52.6]}
29... Rxb2 {[%clk 0:01:13.1]} 30. Nxb2 {[%clk 0:02:38.2]} 30... Kf7 {[%clk
0:01:10]} 31. Kd3 {[%clk 0:02:35.3]} 31... Ke6 {[%clk 0:01:07.4]} 32. Kc4 {[%clk
0:02:33.4]} 32... Ke5 {[%clk 0:01:01.2]} 33. d3 {[%clk 0:02:30.1]} 33... f5
{[%clk 0:00:54.1]} 34. f4+ {[%clk 0:02:28.6]} 34... Ke6 {[%clk 0:00:50.3]} 35.
gxf5+ {[%clk 0:02:22.2]} 35... Kxf5 {[%clk 0:00:49.2]} 36. Kxb3 {[%clk
0:02:20.3]} 36... Kg4 {[%clk 0:00:47.9]} 37. Nc4 {[%clk 0:02:15.9]} 37... Kh3
{[%clk 0:00:41.3]} 38. e4 {[%clk 0:02:14.6]} 38... Kxh2 {[%clk 0:00:39.5]} 39.
f5 {[%clk 0:02:13.6]} 39... h5 {[%clk 0:00:38.1]} 40. Nxd6 {[%clk 0:02:12.5]}
40... h4 {[%clk 0:00:36.5]} 41. e5 {[%clk 0:02:09.8]} 41... h3 {[%clk
0:00:35.4]} 42. Ne4 {[%clk 0:02:08.6]} 42... Kg2 {[%clk 0:00:31.7]} 43. e6
{[%clk 0:02:03.3]} 43... h2 {[%clk 0:00:30.4]} 44. e7 {[%clk 0:02:02]} 44...
h1=Q {[%clk 0:00:28.1]} 45. e8=Q {[%clk 0:02:00.5]} 45... Qb1+ {[%clk 0:00:25]}
46. Kc4 {[%clk 0:01:59.2]} 46... Qa2+ {[%clk 0:00:19.8]} 47. Kb5 {[%clk
0:01:57.9]} 47... Qa5+ {[%clk 0:00:17.9]} 48. Kc6 {[%clk 0:01:56.8]} 48... Qa6+
{[%clk 0:00:15.8]} 49. Kd7 {[%clk 0:01:54.3]} 49... Qa4+ {[%clk 0:00:12.6]} 50.
Kd8 {[%clk 0:01:52]} 50... Ba5+ {[%clk 0:00:10.5]} 51. Kc8 {[%clk 0:01:50.4]}
51... Qxe8+ {[%clk 0:00:09.1]} 52. Kb7 {[%clk 0:01:48.9]} 52... Qd7+ {[%clk
0:00:07.7]} 53. Ka6 {[%clk 0:01:46.8]} 53... Qc7 {[%clk 0:00:07.2]} 54. Kb5
{[%clk 0:01:44.7]} 54... Qb6+ {[%clk 0:00:06.5]} 55. Kc4 {[%clk 0:01:43.5]}
55... Qb4+ {[%clk 0:00:06.1]} 56. Kd5 {[%clk 0:01:42.3]} 56... Qd4+ {[%clk
0:00:05.4]} 57. Ke6 {[%clk 0:01:40.7]} 57... Qxd3 {[%clk 0:00:05.1]} 58. Nxc5
{[%clk 0:01:35.8]} 58... Qc4+ {[%clk 0:00:01.3]} 59. Ke5 {[%clk 0:01:31.4]}
59... Qxc5+ {[%clk 0:00:00.2]} 60. Kf4 {[%clk 0:01:30.2]} 1-0

[Event "Live Chess"]
[Site "Chess.com"]
[Date "2023.05.21"]
[Round "-"]
[White "JackCheetham1"]
[Black "Hacker_2009"]
[Result "0-1"]
[WhiteElo "1694"]
[BlackElo "1916"]
[TimeControl "300"]
[EndTime "2:21:35 PDT"]
[Termination "Hacker_2009 won by resignation"]

1. e4 {[%clk 0:04:40.4]} 1... c5 {[%clk 0:04:58.2]} 2. Ne2 {[%clk 0:04:36.9]}
2... d6 {[%clk 0:04:57.1]} 3. c3 {[%clk 0:04:35.8]} 3... Nf6 {[%clk 0:04:54.4]}
4. d3 {[%clk 0:04:34.5]} 4... e6 {[%clk 0:04:53.8]} 5. Qc2 {[%clk 0:04:33.6]}
5... Be7 {[%clk 0:04:53.1]} 6. Bg5 {[%clk 0:04:32.8]} 6... O-O {[%clk
0:04:52.3]} 7. g3 {[%clk 0:04:31.7]} 7... Nc6 {[%clk 0:04:51.3]} 8. Bg2 {[%clk
0:04:30.8]} 8... d5 {[%clk 0:04:43.7]} 9. O-O {[%clk 0:04:26.2]} 9... b6 {[%clk
0:04:42.6]} 10. Nd2 {[%clk 0:04:22.5]} 10... Bb7 {[%clk 0:04:41.7]} 11. h3
{[%clk 0:04:14.6]} 11... Rc8 {[%clk 0:04:39.4]} 12. Rad1 {[%clk 0:04:12.6]}
12... Qc7 {[%clk 0:04:38]} 13. f4 {[%clk 0:04:05.8]} 13... Rfd8 {[%clk
0:04:35.7]} 14. Nf3 {[%clk 0:03:59.1]} 14... dxe4 {[%clk 0:04:32.2]} 15. dxe4
{[%clk 0:03:56.1]} 15... h6 {[%clk 0:04:29.7]} 16. Bh4 {[%clk 0:03:47.3]} 16...
Na5 {[%clk 0:04:23.1]} 17. Bxf6 {[%clk 0:03:33.6]} 17... Bxf6 {[%clk 0:04:22]}
18. Kh2 {[%clk 0:03:26]} 18... Nc4 {[%clk 0:04:20.4]} 19. Rxd8+ {[%clk
0:03:11.6]} 19... Rxd8 {[%clk 0:04:17.4]} 20. Qb1 {[%clk 0:03:02.7]} 20... Nd2
{[%clk 0:04:09.2]} 21. Nxd2 {[%clk 0:02:59.4]} 21... Rxd2 {[%clk 0:04:09.1]} 22.
Rf2 {[%clk 0:02:50.7]} 22... Ba6 {[%clk 0:04:03.9]} 23. Qe1 {[%clk 0:02:42.5]}
23... Qd7 {[%clk 0:04:02.8]} 24. Ng1 {[%clk 0:02:31.3]} 24... Rxf2 {[%clk
0:03:42.6]} 25. Qxf2 {[%clk 0:02:29.8]} 25... Qd3 {[%clk 0:03:42.1]} 26. e5
{[%clk 0:01:57.2]} 26... Be7 {[%clk 0:03:39.2]} 27. Qf3 {[%clk 0:01:53.4]} 27...
Qd7 {[%clk 0:03:34.7]} 28. Qa8+ {[%clk 0:01:48.7]} 28... Kh7 {[%clk 0:03:33.4]}
29. Be4+ {[%clk 0:01:47.4]} 29... g6 {[%clk 0:03:32.8]} 30. Qc6 {[%clk
0:01:38.7]} 30... Qd2+ {[%clk 0:03:25.5]} 31. Bg2 {[%clk 0:01:33]} 31... Bc4
{[%clk 0:03:16.5]} 32. Qc7 {[%clk 0:01:24.7]} 32... Bd5 {[%clk 0:03:14.1]} 0-1